bitfinex-derivatives/quotes_BTCF0:USTF0_20250318
["timestamp","ask_amount","ask_price","bid_price","bid_amount"]
[1742284883316,0.3523643,83227.0,83226.0,0.14604735]
[1742284883516,0.35612109,83227.0,83226.0,0.14604735]
[1742284883913,0.1201672,83224.0,83220.0,1e-08]
[1742284884112,0.1201672,83224.0,83209.0,0.060094]
[1742284884113,0.0600907,83215.0,83214.0,0.1201807]
[1742284884319,0.2947538,83215.0,83214.0,0.14636346]
[1742284889413,0.5347538,83215.0,83214.0,0.14636346]
[1742284889614,0.2947538,83215.0,83214.0,0.14636346]
[1742284891413,0.47429833,83215.0,83214.0,0.22116346]
[1742284891620,0.58429833,83215.0,83214.0,0.22116346]
[1742284891816,0.1201918,83207.0,83202.0,0.060099]
[1742284892021,1.12091758,83207.0,83195.0,4e-05]
[1742284892318,0.120217,83190.0,83189.0,0.1202163]
[1742284892518,0.234697,83190.0,83189.0,0.1958163]
[1742284892717,0.355697,83190.0,83189.0,0.1958163]
[1742284893922,0.00018026,83198.0,83189.0,0.1958163]
[1742284893923,0.00018026,83198.0,83197.0,0.1202062]
[1742284894127,0.11466026,83198.0,83197.0,0.1202062]
[1742284894724,0.11470026,83198.0,83197.0,0.1960062]
[1742284896220,0.15530026,83198.0,83197.0,0.1960062]
[1742284896723,0.11470026,83198.0,83197.0,0.1960062]
[1742284898121,0.23490506,83198.0,83197.0,0.1960062]
[1742284898320,0.31440506,83198.0,83197.0,0.1960062]
[1742284898520,0.19420026,83198.0,83197.0,0.1960062]
[1742284899214,0.31440506,83198.0,83197.0,0.1960062]
[1742284902021,0.11470026,83198.0,83197.0,0.1960062]
[1742284902423,0.00018026,83198.0,83197.0,0.1960062]
[1742284902629,0.11454026,83198.0,83197.0,0.1960062]
[1742284903833,0.23474506,83198.0,83197.0,0.1960062]
[1742284904534,0.31134506,83198.0,83197.0,0.1960062]
[1742284906923,0.11454026,83198.0,83197.0,0.1960062]
[1742284907126,0.00018026,83198.0,83197.0,0.1960062]
[1742284907329,0.00018026,83198.0,83197.0,0.2260062]
[1742284907550,4e-05,83200.0,83199.0,0.1202033]
[1742284907730,4e-05,83200.0,83199.0,0.1902033]
[1742284908233,0.00375747,83200.0,83199.0,0.1902033]
[1742284908435,0.00399747,83200.0,83199.0,0.1902033]
[1742284908635,0.00399747,83200.0,83199.0,0.1402033]
[1742284909335,0.00018026,83208.0,83207.0,0.1201918]
[1742284909539,0.00018026,83208.0,83207.0,0.5109918]
[1742284910034,0.00018026,83208.0,83207.0,0.8717918]
[1742284910223,0.17954453,83211.0,83210.0,0.1201874]
[1742284910429,0.3118121,83232.0,83210.0,0.1201874]
[1742284910430,0.24048262,83232.0,83231.0,0.1201571]
[1742284910625,0.11448,83232.0,83231.0,0.4809571]
[1742284911031,0.2346357,83232.0,83231.0,0.4809571]
[1742284911529,0.11456,83232.0,83231.0,0.5221571]
[1742284912129,0.11456,83232.0,83231.0,0.54766865]
[1742284912635,0.11456,83232.0,83231.0,0.58706865]
[1742284912825,0.2347157,83232.0,83231.0,0.58706865]
[1742284913534,0.11456,83232.0,83231.0,0.58706865]
[1742284915840,0.11456,83232.0,83231.0,0.59604906]
[1742284917829,0.15496,83232.0,83231.0,0.59604906]
[1742284918142,0.2751157,83232.0,83231.0,0.59604906]
[1742284918335,0.2752357,83232.0,83231.0,0.59604906]
[1742284918537,0.15508,83232.0,83231.0,0.59604906]
[1742284919735,0.2752357,83232.0,83231.0,0.59604906]
[1742284921645,0.27899211,83232.0,83231.0,0.59604906]
[1742284922635,0.15883641,83232.0,83231.0,0.59604906]
[1742284923244,0.19903641,83232.0,83231.0,0.59604906]
[1742284923845,0.00383641,83232.0,83231.0,0.62604906]
[1742284924146,0.1993311,83249.0,83248.0,0.1201326]
[1742284924342,0.3140511,83249.0,83248.0,0.1961326]
[1742284925651,0.3140511,83249.0,83248.0,0.22841303]
[1742284927752,0.3140511,83249.0,83248.0,0.03228043]
[1742284927951,0.1201427,83241.0,83234.0,0.1201515]
[1742284928151,0.2347827,83241.0,83235.0,0.0372]
[1742284928445,0.2347827,83241.0,83237.0,0.1201479]
[1742284928647,0.3447827,83241.0,83231.0,0.3608]
[1742284928849,0.4236827,83241.0,83231.0,0.3608]
[1742284929042,0.3136827,83241.0,83233.0,0.1201532]
[1742284929443,0.4036827,83241.0,83232.0,0.081]
[1742284930148,0.3136827,83241.0,83232.0,0.081]
[1742284930352,0.5836827,83241.0,83232.0,0.081]
[1742284930848,0.4136827,83241.0,83232.0,0.081]
[1742284931054,0.4136827,83241.0,83231.0,0.3608]
[1742284931244,0.3136827,83241.0,83231.0,0.3608]
[1742284931451,0.4136827,83241.0,83231.0,0.3608]
[1742284931652,0.4136827,83241.0,83232.0,0.0799]
[1742284931949,0.3136827,83241.0,83239.0,0.03203578]
[1742284932147,0.3136827,83241.0,83240.0,0.08008026]
[1742284933541,0.3136827,83241.0,83240.0,0.20022436]
[1742284934052,0.3139627,83241.0,83240.0,0.20022436]
[1742284934656,4e-05,83245.0,83242.0,0.0600699]
[1742284934957,4e-05,83245.0,83244.0,0.1201383]
[1742284935149,0.11492,83245.0,83244.0,0.1201383]
[1742284935349,0.11492,83245.0,83244.0,0.1960383]
[1742284935652,0.1201707,83250.0,83246.0,0.1201355]
[1742284935852,0.50063758,83247.0,83246.0,0.1201355]
[1742284936252,0.62077158,83247.0,83246.0,0.1201355]
[1742284936463,0.235094,83247.0,83246.0,0.1201355]
[1742284937144,0.272194,83247.0,83246.0,0.1201355]
[1742284937457,0.1201369,83245.0,83244.0,0.1960383]
[1742284937855,0.1201369,83245.0,83244.0,0.1359684]
[1742284938054,0.1201369,83245.0,83244.0,0.2561064]
[1742284941159,0.2350969,83245.0,83244.0,0.2561064]
[1742284945456,0.2350969,83245.0,83240.0,0.36098026]
[1742284945457,0.1201427,83241.0,83240.0,0.36098026]
[1742284945963,0.1201427,83241.0,83240.0,0.48112436]
[1742284946864,0.1201427,83241.0,83240.0,0.55622436]
[1742284950759,0.0600706,83243.0,83242.0,0.1201412]
[1742284950961,0.0975654,83250.0,83248.0,0.1201311]
[1742284951161,0.87364,83253.0,83251.0,0.1201282]
[1742284951367,0.62060438,83252.0,83251.0,0.1201282]
[1742284953265,0.50047758,83252.0,83251.0,0.1201282]
[1742284953864,0.1148,83252.0,83251.0,0.1201282]
[1742284954271,0.00064,83253.0,83252.0,0.1201268]
[1742284954567,0.0600594,83258.0,83252.0,0.1201268]
[1742284954568,4e-05,83263.0,83262.0,0.1201124]
[1742284954764,4e-05,83263.0,83262.0,0.5109124]
[1742284955276,0.1749291,83272.0,83262.0,0.5109124]
[1742284955277,0.11488,83266.0,83265.0,0.120108]
[1742284955573,0.0600504,83271.0,83270.0,0.1201008]
[1742284955765,0.25071658,83272.0,83271.0,0.1200994]
[1742284955970,0.36559658,83272.0,83271.0,0.15297119]
[1742284956169,0.36559658,83272.0,83271.0,0.51377119]
[1742284956372,0.48569448,83272.0,83271.0,0.51377119]
[1742284958569,0.52369448,83272.0,83271.0,0.51377119]
[1742284958766,0.52369448,83272.0,83271.0,0.40283909]
[1742284958963,0.52369448,83272.0,83271.0,0.39367179]
[1742284959968,0.2729779,83272.0,83271.0,0.39367179]
[1742284960163,0.2349779,83272.0,83271.0,0.51377119]
[1742284960661,0.1200979,83272.0,83271.0,0.51377119]
[1742284960858,0.2348979,83272.0,83271.0,0.52299527]
[1742284961574,0.3120979,83272.0,83271.0,0.52299527]
[1742284962880,0.3120979,83272.0,83271.0,0.39367179]
[1742284964674,0.3120979,83272.0,83271.0,0.51377119]
[1742284965472,0.2348979,83272.0,83271.0,0.58667119]
[1742284966279,0.1946979,83272.0,83271.0,0.58667119]
[1742284966471,0.3096579,83272.0,83271.0,0.58667119]
[1742284968371,0.18956,83272.0,83271.0,0.58667119]
[1742284968573,0.15356,83272.0,83271.0,0.58667119]
[1742284968876,0.11488,83272.0,83271.0,0.64672019]
[1742284969085,4e-05,83274.0,83273.0,0.1200965]
[1742284969283,0.11492,83274.0,83273.0,0.1200965]
[1742284969574,0.2350151,83274.0,83273.0,0.1200965]
[1742284970178,0.2349751,83274.0,83273.0,0.1200965]
[1742284971481,0.11488,83274.0,83273.0,0.1200965]
[1742284971682,4e-05,83276.0,83275.0,0.1200936]
[1742284971977,0.11488,83276.0,83275.0,0.1200936]
[1742284972280,0.11484,83276.0,83275.0,0.1560936]
[1742284973085,0.2349322,83276.0,83275.0,0.1660936]
[1742284977280,0.2349322,83276.0,83275.0,0.1560936]
[1742284978478,0.2712322,83276.0,83275.0,0.1560936]
[1742284978888,0.15114,83276.0,83275.0,0.1560936]
[1742284979383,0.15114,83276.0,83271.0,0.46401482]
[1742284979384,0.1200979,83272.0,83271.0,0.03399179]
[1742284979688,0.1200979,83272.0,83271.0,0.03287179]
[1742284979891,0.1201037,83268.0,83267.0,0.1201048]
[1742284980080,0.2350637,83268.0,83267.0,0.1201048]
[1742284980584,0.23881879,83268.0,83267.0,0.1201048]
[1742284980778,0.23881879,83268.0,83267.0,0.15171682]
[1742284982687,0.33881879,83268.0,83267.0,0.03161202]
[1742284982881,0.1201109,83263.0,83260.0,0.1201151]
[1742284983288,0.1201109,83263.0,83258.0,0.1201176]
[1742284983889,0.19606599,83263.0,83258.0,0.1201176]
[1742284984276,0.19606599,83263.0,83257.0,0.00018015]
[1742284984481,0.1923109,83263.0,83257.0,0.00018015]
[1742284984779,0.1923109,83263.0,83262.0,0.38848143]
[1742284985180,0.3072309,83263.0,83262.0,0.50859383]
[1742284985391,0.3072309,83263.0,83262.0,0.54659383]
[1742284985586,0.2823109,83263.0,83262.0,0.54659383]
[1742284985783,0.2823109,83263.0,83235.0,0.00112]
[1742284985784,0.0600572,83261.0,83235.0,0.00112]
[1742284985986,0.1802122,83242.0,83241.0,0.0353]
[1742284986288,0.115,83242.0,83241.0,0.1554427]
[1742284987081,0.2351412,83242.0,83241.0,0.1554427]
[1742284987799,0.2351412,83242.0,83241.0,0.1754427]
[1742284987800,0.115,83242.0,83241.0,0.1754427]
[1742284988880,0.2351412,83242.0,83241.0,0.1554427]
[1742284989086,0.2712412,83242.0,83241.0,0.1554427]
[1742284994601,0.2712412,83242.0,83241.0,0.0372]
[1742284994790,0.2712412,83242.0,83241.0,0.1573427]
[1742284998298,0.115,83242.0,83241.0,0.1573427]
[1742284998511,0.115,83242.0,83241.0,0.1873427]
[1742284998803,4e-05,83243.0,83242.0,0.1201412]
[1742284998991,4e-05,83243.0,83242.0,0.2849412]
[1742284999192,0.00017978,83250.0,83249.0,0.1201311]
[1742284999401,0.11509978,83250.0,83249.0,0.4809311]
[1742284999590,0.11509978,83250.0,83249.0,0.5109311]
[1742284999993,0.11509978,83250.0,83249.0,0.5835311]
[1742285000403,0.23522948,83250.0,83249.0,0.5535311]
[1742285001599,0.12030948,83250.0,83249.0,0.5535311]
[1742285001798,0.00017978,83250.0,83249.0,0.5535311]
[1742285002603,0.12030948,83250.0,83249.0,0.5535311]
[1742285003600,0.12030948,83250.0,83249.0,0.4334]
[1742285003793,0.15600948,83250.0,83249.0,0.4334]
[1742285003993,0.22820948,83250.0,83249.0,0.4334]
[1742285004793,0.22820948,83250.0,83249.0,0.5535311]
[1742285008398,0.32820948,83250.0,83249.0,0.4334]
[1742285008605,0.32820948,83250.0,83249.0,0.3986]
[1742285009103,0.32820948,83250.0,83249.0,0.3608]
[1742285010507,0.11501978,83250.0,83249.0,0.4809311]
[1742285011306,0.00017978,83250.0,83249.0,0.4809311]
[1742285011505,0.11501978,83250.0,83249.0,0.5555311]
[1742285013398,0.00017978,83250.0,83249.0,0.5555311]
[1742285014012,0.12030948,83250.0,83249.0,0.5555311]
[1742285014398,0.00017978,83250.0,83249.0,0.5555311]
[1742285014608,0.12030948,83250.0,83249.0,0.5555311]
[1742285014801,0.00017978,83250.0,83249.0,0.5555311]
[1742285016508,0.12030948,83250.0,83249.0,0.5555311]
[1742285016705,0.00017978,83250.0,83249.0,0.5555311]
[1742285017609,0.12030948,83250.0,83249.0,0.5555311]
[1742285020006,0.00017978,83250.0,83249.0,0.5855311]
[1742285020212,4e-05,83251.0,83250.0,0.1201297]
[1742285020515,4e-05,83251.0,83250.0,0.2901297]
[1742285020701,4e-05,83251.0,83250.0,0.1944297]
[1742285021202,0.1201201,83257.0,83256.0,0.120121]
[1742285021409,0.1801763,83259.0,83258.0,0.1201181]
[1742285021807,0.33087579,83260.0,83259.0,0.1201167]
[1742285022003,0.33087579,83260.0,83259.0,0.1944167]
[1742285022004,0.33611109,83260.0,83259.0,0.1944167]
[1742285022211,0.1201553,83260.0,83259.0,0.1944167]
[1742285023005,0.3072953,83260.0,83259.0,0.0743]
[1742285023609,0.3072953,83260.0,83259.0,0.1944167]
[1742285027819,0.3072953,83260.0,83259.0,0.0743]
[1742285031018,0.1201196,83257.0,83256.0,0.36192]
[1742285031219,0.1201196,83257.0,83256.0,0.3608]
[1742285031517,0.1201268,83252.0,83251.0,0.0374]
[1742285031719,0.2348868,83252.0,83251.0,0.0374]
[1742285032020,0.2704868,83252.0,83251.0,0.0374]
[1742285032414,0.3053868,83252.0,83251.0,0.0752]
[1742285036613,0.3053868,83252.0,83251.0,0.0378]
[1742285036809,0.3953868,83252.0,83251.0,0.0378]
[1742285037414,0.1201282,83251.0,83250.0,0.00018015]
[1742285037711,0.4270282,83251.0,83250.0,0.00018015]
[1742285038624,0.1970282,83251.0,83250.0,0.00018015]
[1742285038826,0.3070282,83251.0,83250.0,0.00018015]
[1742285039125,0.1970282,83251.0,83250.0,0.00018015]
[1742285039425,0.2970282,83251.0,83250.0,0.00018015]
[1742285040721,0.1970282,83251.0,83250.0,0.00018015]
[1742285040913,0.11464,83251.0,83250.0,0.00018015]
[1742285041110,0.11464,83251.0,83250.0,0.12030985]
[1742285041314,0.11468,83256.0,83255.0,0.1201211]
[1742285041515,0.2348043,83256.0,83255.0,0.4809211]
[1742285042322,0.2348043,83256.0,83255.0,0.5565211]
[1742285042524,0.3138043,83256.0,83255.0,0.5565211]
[1742285043727,0.3138043,83256.0,83255.0,0.4364]
[1742285043925,0.3138043,83256.0,83255.0,0.5565225]
[1742285044123,0.3138043,83256.0,83255.0,0.4364]
[1742285044429,0.3138043,83256.0,83255.0,0.5565225]
[1742285046324,0.31755978,83256.0,83255.0,0.5565225]
[1742285047333,0.3138043,83256.0,83255.0,0.5565225]
[1742285048721,4e-05,83257.0,83255.0,0.4364]
[1742285048929,4e-05,83257.0,83256.0,0.158321]
[1742285049131,0.11452,83263.0,83262.0,0.1201124]
[1742285049330,0.11452,83263.0,83262.0,0.4809124]
[1742285049531,0.00375497,83263.0,83262.0,0.4809124]
[1742285049735,0.00375497,83263.0,83262.0,0.5009124]
[1742285049936,0.00375497,83263.0,83262.0,0.4809124]
[1742285050155,0.00375497,83263.0,83262.0,0.5109124]
[1742285050353,0.21586881,83264.0,83263.0,0.1201109]
[1742285050850,0.21586881,83264.0,83263.0,0.1958109]
[1742285051740,4e-05,83264.0,83263.0,0.2558109]
[1742285051940,4e-05,83264.0,83263.0,0.1958109]
[1742285053045,4e-05,83264.0,83263.0,0.2658109]
[1742285053650,0.1201495,83264.0,83263.0,0.2658109]
[1742285053952,4e-05,83264.0,83263.0,0.2658109]
[1742285056456,0.21582881,83278.0,83277.0,0.1200907]
[1742285056650,0.19098,83293.0,83286.0,0.1200778]
[1742285056851,0.1201163,83287.0,83286.0,0.1200778]
[1742285057053,0.1200758,83288.0,83287.0,0.1200749]
[1742285057353,0.120073,83290.0,83289.0,0.1801065]
[1742285057551,0.120073,83290.0,83289.0,0.2170065]
[1742285057958,0.234753,83290.0,83289.0,0.2170065]
[1742285058262,0.120111,83291.0,83290.0,0.120072]
[1742285058448,4e-05,83291.0,83290.0,0.12894901]
[1742285058653,0.11468,83291.0,83290.0,0.16584901]
[1742285059157,0.11464,83291.0,83290.0,0.16584901]
[1742285059361,0.0763,83298.0,83290.0,0.16584901]
[1742285059362,0.0763,83298.0,83293.0,0.0600318]
[1742285059661,0.1200662,83296.0,83295.0,0.1800936]
[1742285059859,0.1200662,83296.0,83295.0,0.2204936]
[1742285060046,0.2348262,83296.0,83295.0,0.2204936]
[1742285060958,0.11476,83296.0,83295.0,0.2204936]
[1742285061160,0.0386,83298.0,83297.0,0.1200619]
[1742285061461,0.14,83300.0,83299.0,0.120059]
[1742285061662,0.3749776,83300.0,83299.0,0.120059]
[1742285062150,0.3749776,83300.0,83299.0,0.160459]
[1742285062346,0.3750176,83300.0,83299.0,0.0404]
[1742285062961,0.4542176,83300.0,83299.0,0.0404]
[1742285064360,0.1200648,83295.0,83294.0,0.36196]
[1742285064663,0.1200648,83295.0,83294.0,0.3608]
[1742285064861,0.1200648,83295.0,83294.0,0.0392]
[1742285065080,0.2350248,83295.0,83294.0,0.0392]
[1742285065251,0.3150248,83295.0,83294.0,0.0392]
[1742285065650,0.3150248,83295.0,83294.0,0.1592662]
[1742285066056,0.11496,83295.0,83294.0,0.1592662]
[1742285066251,0.2350248,83295.0,83294.0,0.1592662]
[1742285066448,0.1200648,83295.0,83294.0,0.1592662]
[1742285066652,0.11492,83295.0,83294.0,0.1592662]
[1742285066853,0.2349848,83295.0,83294.0,0.1592662]
[1742285068169,0.2349848,83295.0,83294.0,0.0392]
[1742285068359,0.3146848,83295.0,83294.0,0.0392]
[1742285068663,0.3146848,83295.0,83294.0,0.1592662]
[1742285069161,0.2349848,83295.0,83294.0,0.1592662]
[1742285069758,0.11492,83295.0,83294.0,0.1592662]
[1742285069960,0.2349848,83295.0,83294.0,0.1592662]
[1742285073867,0.11492,83295.0,83294.0,0.1592662]
[1742285074067,0.11492,83295.0,83294.0,0.1692662]
[1742285074466,0.11492,83295.0,83294.0,0.2062662]
[1742285074663,0.2349848,83295.0,83294.0,0.2062662]
[1742285074864,0.2349848,83295.0,83294.0,0.1962662]
[1742285076066,0.2349848,83295.0,83294.0,0.2062662]
[1742285076274,0.2349848,83295.0,83294.0,0.1962662]
[1742285076971,0.3111848,83295.0,83294.0,0.1962662]
[1742285077464,0.2738848,83295.0,83294.0,0.1962662]
[1742285077671,4e-05,83296.0,83294.0,0.1962662]
[1742285077672,4e-05,83296.0,83295.0,0.1200648]
[1742285077869,4e-05,83296.0,83295.0,0.1878648]
[1742285078165,4e-05,83296.0,83295.0,0.2629648]
[1742285079162,0.14,83300.0,83299.0,0.120059]
[1742285079371,0.14,83300.0,83299.0,0.500859]
[1742285080068,0.14,83300.0,83299.0,0.537659]
[1742285080266,0.00064,83325.0,83299.0,0.7207]
[1742285080465,0.0600144,83320.0,83318.0,0.4208126]
[1742285080667,0.1800432,83320.0,83319.0,0.0752]
[1742285080859,0.1800432,83320.0,83319.0,0.1952302]
[1742285081458,0.17860705,83320.0,83319.0,0.1952302]
[1742285081970,0.00375265,83320.0,83319.0,0.1952302]
[1742285082170,0.11863265,83320.0,83319.0,0.1952302]
[1742285083771,4e-05,83321.0,83320.0,0.1200288]
[1742285083970,4e-05,83321.0,83320.0,0.1995288]
[1742285084174,0.1800234,83331.0,83330.0,0.1200102]
[1742285084367,0.1200204,83328.0,83327.0,0.1800228]
[1742285084777,0.5408165,83334.0,83333.0,0.12001]
[1742285084973,0.47572,83334.0,83333.0,0.12001]
[1742285085366,0.47947231,83334.0,83333.0,0.12001]
[1742285085766,0.48456091,83334.0,83333.0,0.14487747]
[1742285086076,0.48456091,83334.0,83333.0,0.02486747]
[1742285086271,0.1200115,83332.0,83331.0,0.1395058]
[1742285086471,0.2200115,83332.0,83331.0,0.06461663]
[1742285086675,0.1200115,83332.0,83331.0,0.06461663]
[1742285087373,0.1200115,83332.0,83331.0,0.02551663]
[1742285087575,0.1200158,83329.0,83328.0,0.1974162]
[1742285087968,0.1200158,83329.0,83328.0,0.22232518]
[1742285088961,0.1200158,83329.0,83328.0,0.10230898]
[1742285089168,0.1200158,83329.0,83328.0,0.22232618]
[1742285090165,0.1200158,83330.0,83329.0,0.1800196]
[1742285090362,0.1200158,83330.0,83329.0,0.2580196]
[1742285091880,0.12376799,83330.0,83329.0,0.2580196]
[1742285092177,0.00375219,83330.0,83329.0,0.2580196]
[1742285092565,0.11859219,83330.0,83329.0,0.2580196]
[1742285092768,0.23860659,83330.0,83329.0,0.2580196]
[1742285092968,0.11859219,83330.0,83329.0,0.2580196]
[1742285093577,0.12376659,83330.0,83329.0,0.2580196]
[1742285094480,0.00375219,83330.0,83329.0,0.2780196]
[1742285095276,0.06,83340.0,83329.0,0.2780196]
[1742285095277,0.1199922,83349.0,83348.0,0.119982]
[1742285095478,0.23183984,83349.0,83348.0,0.119982]
[1742285096078,0.23183984,83349.0,83348.0,0.199782]
[1742285096275,0.30903984,83349.0,83348.0,0.0798]
[1742285096474,0.42407984,83349.0,83348.0,0.0798]
[1742285096686,0.1199899,83347.0,83346.0,0.3608]
[1742285097085,0.1199985,83341.0,83337.0,0.3608]
[1742285097378,0.2650785,83341.0,83337.0,0.3608]
[1742285097583,0.2650785,83341.0,83338.0,0.0793]
[1742285098078,0.2271985,83341.0,83338.0,0.0793]
[1742285098278,0.3422385,83341.0,83338.0,0.1993024]
[1742285098683,0.3122385,83341.0,83338.0,0.1993024]
[1742285098887,0.3122385,83341.0,83340.0,0.12018002]
[1742285099072,0.19232,83341.0,83340.0,0.12936713]
[1742285099384,0.11512,83341.0,83340.0,0.12936713]
[1742285099883,0.2351185,83341.0,83340.0,0.12936713]
[1742285100471,0.2738185,83341.0,83340.0,0.00936713]
[1742285102772,0.3738185,83341.0,83340.0,0.00936713]
[1742285102975,0.2738185,83341.0,83340.0,0.00018002]
[1742285103675,0.3838185,83341.0,83340.0,0.00018002]
[1742285104281,0.6346185,83341.0,83340.0,0.00018002]
[1742285104481,0.7446185,83341.0,83340.0,0.00018002]
[1742285104979,0.7246185,83341.0,83340.0,0.00018002]
[1742285105179,0.6346185,83341.0,83340.0,0.00018002]
[1742285105486,0.7246185,83341.0,83340.0,0.00018002]
[1742285105675,0.6094985,83341.0,83340.0,0.00018002]
[1742285105875,0.7345385,83341.0,83340.0,0.00018002]
[1742285107990,0.1200388,83313.0,83312.0,0.3608]
[1742285108282,0.1200388,83313.0,83312.0,0.50309672]
[1742285108283,0.2353188,83313.0,83312.0,0.50309672]
[1742285108685,0.2353188,83313.0,83312.0,0.58099672]
[1742285108886,0.3110188,83313.0,83312.0,0.58099672]
[1742285109184,0.3110188,83313.0,83312.0,0.58983453]
[1742285109479,0.3110188,83313.0,83312.0,0.46979423]
[1742285111081,0.3110188,83313.0,83312.0,0.46095642]
[1742285111288,0.3110188,83313.0,83312.0,5.02225642]
[1742285111487,0.6718188,83313.0,83312.0,5.02225642]
[1742285112892,0.7718188,83313.0,83312.0,5.02225642]
[1742285113583,5.7718188,83313.0,83312.0,2.8916385]
[1742285119692,5.7718188,83313.0,83312.0,2.50512825]
[1742285120292,5.7718188,83313.0,83312.0,2.48048239]
[1742285120490,5.7718188,83313.0,83312.0,2.45358239]
[1742285120697,5.7718188,83313.0,83312.0,2.42618239]
[1742285120995,5.7718188,83313.0,83312.0,2.39261239]
[1742285121191,5.9218188,83313.0,83312.0,2.32420089]
[1742285121401,5.8065388,83313.0,83312.0,1.84435959]
[1742285121587,5.9216988,83313.0,83312.0,1.84435959]
[1742285121785,5.9266988,83313.0,83312.0,1.84535959]
[1742285122096,5.9316988,83313.0,83312.0,1.84635959]
[1742285122489,5.9216988,83313.0,83312.0,1.13762184]
[1742285122782,5.9316988,83313.0,83312.0,1.03067534]
[1742285122981,5.9316988,83313.0,83312.0,0.96809634]
[1742285123387,5.8165388,83313.0,83312.0,0.96809634]
[1742285123679,5.9317788,83313.0,83312.0,0.96809634]
[1742285125401,5.9317788,83313.0,83312.0,0.58158609]
[1742285125893,5.9317788,83313.0,83312.0,0.45031319]
[1742285126895,6.31745638,83313.0,83312.0,0.30714589]
[1742285127096,6.31745638,83313.0,83312.0,0.27506689]
[1742285130789,6.16745638,83313.0,83312.0,0.27506689]
[1742285132608,6.1787188,83313.0,83312.0,0.27506689]
[1742285134307,6.1784388,83313.0,83312.0,0.27506689]
[1742285134605,6.0634788,83313.0,83312.0,0.27506689]
[1742285134900,6.1027788,83313.0,83312.0,0.27506689]
[1742285135103,6.09151638,83313.0,83312.0,0.27506689]
[1742285135606,6.16111638,83313.0,83312.0,0.27506689]
[1742285136598,6.16115638,83313.0,83312.0,0.27506689]
[1742285136797,6.09155638,83313.0,83312.0,0.27506689]
[1742285137101,5.97651638,83313.0,83312.0,0.27506689]
[1742285137309,6.09151638,83313.0,83312.0,0.27506689]
[1742285138605,5.7058388,83313.0,83312.0,0.27506689]
[1742285140106,5.7057588,83313.0,83312.0,0.27506689]
[1742285140293,5.71701977,83313.0,83312.0,0.27506689]
[1742285141908,5.60209977,83313.0,83312.0,0.27506689]
[1742285142112,5.71697977,83313.0,83312.0,0.27506689]
[1742285143513,5.74676821,83313.0,83312.0,0.27506689]
[1742285143712,5.71693977,83313.0,83312.0,0.27506689]
[1742285144010,5.74678056,83313.0,83312.0,0.27506689]
[1742285144906,5.60209977,83313.0,83312.0,0.27506689]
[1742285145111,5.71689977,83313.0,83312.0,0.27506689]
[1742285145310,5.74674578,83313.0,83312.0,0.27506689]
[1742285145612,5.70689977,83313.0,83312.0,0.27506689]
[1742285147007,5.73662727,83313.0,83312.0,0.27506689]
[1742285149712,5.85618748,83313.0,83312.0,0.27506689]
[1742285149909,5.74138748,83313.0,83312.0,0.27506689]
[1742285150112,5.82637998,83313.0,83312.0,0.27506689]
[1742285150312,5.85608792,83313.0,83312.0,0.27506689]
[1742285150615,5.82637998,83313.0,83312.0,0.27506689]
[1742285151304,5.81511901,83313.0,83312.0,0.27506689]
[1742285153615,3.31511901,83313.0,83312.0,0.27506689]
[1742285154017,3.1955588,83313.0,83312.0,0.27506689]
[1742285154418,3.0808388,83313.0,83312.0,0.27506689]
[1742285154718,3.1954788,83313.0,83312.0,0.27506689]
[1742285155119,3.0808388,83313.0,83312.0,0.27506689]
[1742285155314,3.1954388,83313.0,83312.0,0.27506689]
[1742285155514,3.2316388,83313.0,83312.0,0.27506689]
[1742285155714,3.2660388,83313.0,83312.0,0.27506689]
[1742285156820,0.1200504,83305.0,83304.0,0.00018002]
[1742285157022,0.1200561,83301.0,83300.0,100.00108]
[1742285157209,0.3800561,83301.0,83300.0,100.0]
[1742285157416,0.4835561,83301.0,83300.0,100.0]
[1742285158314,0.4885561,83301.0,83300.0,100.001]
[1742285158914,0.3850561,83301.0,83300.0,100.001]
[1742285159315,0.4530561,83301.0,83300.0,100.001]
[1742285159820,0.2250561,83301.0,83300.0,100.001]
[1742285160030,0.2300561,83301.0,83300.0,100.001]
[1742285160626,0.2961561,83301.0,83300.0,100.001]
[1742285179937,0.29991022,83301.0,83300.0,99.96345875]
[1742285180437,0.2961561,83301.0,83300.0,99.96345875]
[1742285180639,0.29991022,83301.0,83300.0,99.96345875]
[1742285181443,0.2961561,83301.0,83300.0,99.96345875]
[1742285182738,0.4104761,83301.0,83300.0,99.96345875]
[1742285184126,0.7712761,83301.0,83300.0,99.96345875]
[1742285184739,0.5569561,83301.0,83300.0,99.96345875]
[1742285184930,0.6051761,83301.0,83300.0,99.96345875]
[1742285185240,0.7151761,83301.0,83300.0,99.96345875]
[1742285185927,0.7849761,83301.0,83300.0,99.96345875]
[1742285187841,0.6749761,83301.0,83300.0,99.96345875]
[1742285188531,0.7749761,83301.0,83300.0,99.96345875]
[1742285189026,0.8149761,83301.0,83300.0,99.96345875]
[1742285189438,0.7804761,83301.0,83300.0,99.96345875]
[1742285190243,0.6404761,83301.0,83300.0,99.96345875]
[1742285190437,0.7051761,83301.0,83300.0,99.96345875]
[1742285191826,0.7737761,83301.0,83300.0,99.96345875]
[1742285192240,0.8074761,83301.0,83300.0,99.96345875]
[1742285197935,0.82789328,83301.0,83300.0,99.96345875]
[1742285199035,0.8074761,83301.0,83300.0,99.96345875]
[1742285204447,0.6931561,83301.0,83300.0,99.96345875]
[1742285204749,0.8074361,83301.0,83300.0,99.96345875]
[1742285213643,0.8072761,83301.0,83300.0,99.96345875]
[1742285215256,0.8072361,83301.0,83300.0,99.96345875]
[1742285219850,1.1680361,83301.0,83300.0,99.96345875]
[1742285221156,1.1679961,83301.0,83300.0,99.96345875]
[1742285222060,1.29257254,83301.0,83300.0,99.96345875]
[1742285224964,1.29261254,83301.0,83300.0,99.96345875]
[1742285226453,1.29257254,83301.0,83300.0,99.96345875]
[1742285229760,1.07623254,83301.0,83300.0,99.96345875]
[1742285229961,1.09027254,83301.0,83300.0,99.96345875]
[1742285232361,0.97623254,83301.0,83300.0,99.96345875]
[1742285232562,1.09023254,83301.0,83300.0,99.96345875]
[1742285233569,0.9656561,83301.0,83300.0,99.96345875]
[1742285235267,1.2356561,83301.0,83300.0,99.96345875]
[1742285235467,1.2716561,83301.0,83300.0,99.96345875]
[1742285235669,1.3055561,83301.0,83300.0,99.96345875]
[1742285236373,1.3055561,83301.0,83300.0,99.5608439]
[1742285236568,1.32439098,83301.0,83300.0,99.5358739]
[1742285236869,1.32439098,83301.0,83300.0,99.4880739]
[1742285237168,1.32439098,83301.0,83300.0,99.4173239]
[1742285237477,1.47439098,83301.0,83300.0,99.06480479]
[1742285237668,1.32439098,83301.0,83300.0,99.06480479]
[1742285238169,1.86006856,83301.0,83300.0,99.01840479]
[1742285238366,1.91210722,83301.0,83300.0,98.90321531]
[1742285238770,1.92336924,83301.0,83300.0,98.83562253]